bitfinex/quotes_ETHUSD_20240817
["timestamp","ask_amount","ask_price","bid_price","bid_amount"]
[1723856524591,1.662,2602.5,2602.2,1.33677587]
[1723856524916,1.662,2602.5,2602.1,5.08641285]
[1723856524917,0.12705453,2602.4,2602.1,2.2766]
[1723856525119,2.87103966,2602.5,2602.1,2.2766]
[1723856525120,1.662,2602.5,2602.1,2.2766]
[1723856525419,0.12705454,2602.4,2602.1,2.2766]
[1723856525615,1.662,2602.5,2602.1,2.2766]
[1723856525914,0.12705311,2602.4,2602.1,2.2766]
[1723856526118,1.662,2602.5,2602.1,2.2766]
[1723856527001,0.12705143,2602.4,2602.1,2.2766]
[1723856527212,1.662,2602.3,2601.8,3.0]
[1723856527513,2.19428539,2602.3,2601.8,3.0]
[1723856529902,2.19428539,2602.3,2601.6,7.28233972]
[1723856530103,2.19428539,2602.3,2601.6,5.2766]
[1723856530280,2.19428539,2602.3,2601.6,7.28238867]
[1723856530587,2.19428539,2602.3,2601.6,5.2766]
[1723856531001,2.19428539,2602.3,2601.6,7.28239438]
[1723856531193,2.19428539,2602.3,2601.6,5.2766]
[1723856531379,2.19428539,2602.3,2601.6,9.12037]
[1723856532102,2.19428539,2602.3,2601.6,5.2766]
[1723856532295,0.12706311,2602.2,2601.6,5.2766]
[1723856532495,2.19428539,2602.3,2601.6,5.2766]
[1723856532792,0.7,2602.1,2601.6,5.2766]
[1723856532991,0.7,2602.1,2601.7,3.0]
[1723856533326,0.7,2602.1,2601.6,2.2766]
[1723856537232,0.7,2602.1,2601.6,5.2766]
[1723856537820,2.4076,2602.0,2601.6,3.0]
[1723856538136,0.7,2602.1,2601.6,5.2803]
[1723856539305,2.362,2602.1,2601.6,3.0]
[1723856539597,2.89218854,2602.1,2601.6,3.0]
[1723856539791,2.89218854,2602.1,2601.5,3.0]
[1723856540558,0.1270712,2602.0,2601.5,3.0]
[1723856540838,2.89218854,2602.1,2601.5,3.0]
[1723856541032,0.12707136,2602.0,2601.5,3.0]
[1723856541196,2.89218854,2602.1,2601.5,3.0]
[1723856541535,0.12707099,2602.0,2601.5,3.0]
[1723856541700,2.89218854,2602.1,2601.5,3.0]
[1723856541903,0.12707305,2602.0,2601.5,6.84392]
[1723856542110,0.7,2602.1,2601.5,11.984609]
[1723856542339,0.7,2602.1,2601.6,3.84378]
[1723856542635,0.7,2602.1,2601.7,3.0]
[1723856542835,0.7,2602.1,2601.6,3.0]
[1723856543026,0.7,2602.1,2601.6,3.71392831]
[1723856543338,0.12706348,2602.0,2601.6,3.71392831]
[1723856544640,0.12706229,2602.0,2601.6,3.71392831]
[1723856544937,0.7,2602.1,2601.6,3.71392831]
[1723856545145,0.12706411,2602.0,2601.6,3.71392831]
[1723856545328,0.7,2602.1,2601.6,3.71392831]
[1723856545528,0.12706408,2602.0,2601.6,3.71392831]
[1723856545747,0.12706408,2601.9,2601.6,3.71392831]
[1723856545904,0.7,2602.1,2601.6,7.55770831]
[1723856546104,0.12706545,2602.0,2601.6,7.55770831]
[1723856546336,0.12706545,2601.9,2601.6,7.55770831]
[1723856546529,0.7,2602.1,2601.6,7.55770831]
[1723856546826,0.12706601,2602.0,2601.6,7.55770831]
[1723856547025,0.12706601,2601.9,2601.6,6.84378]
[1723856547229,0.12706893,2601.8,2601.6,3.0]
[1723856547422,0.12707965,2601.7,2601.5,3.0]
[1723856547730,2.4076,2601.9,2601.5,3.0]
[1723856547922,0.12707385,2601.8,2601.5,3.0]
[1723856548127,0.12707385,2601.7,2601.5,3.0]
[1723856548335,2.4076,2601.9,2601.5,3.0]
[1723856548670,0.12707378,2601.8,2601.5,3.0]
[1723856548871,2.4076,2601.9,2601.5,3.0]
[1723856549176,0.58172762,2601.8,2601.5,3.0]
[1723856549344,0.12707162,2601.7,2601.5,3.0]
[1723856549665,2.4076,2601.9,2601.5,3.0]
[1723856549824,0.12707496,2601.8,2601.5,3.0]
[1723856550025,2.4076,2601.9,2601.5,3.0]
[1723856550331,0.1270718,2601.8,2601.5,3.0]
[1723856550526,2.4076,2601.9,2601.5,3.0]
[1723856550763,0.12707345,2601.8,2601.5,3.0]
[1723856550952,0.12707345,2601.7,2601.5,3.0]
[1723856551153,2.4076,2601.9,2601.5,3.0]
[1723856551349,0.12707417,2601.8,2601.5,3.0]
[1723856551570,2.4076,2601.9,2601.5,3.0]
[1723856551743,0.12707138,2601.8,2601.5,3.0]
[1723856551945,2.4076,2601.9,2601.5,3.0]
[1723856552266,0.12707274,2601.8,2601.5,3.0]
[1723856552469,2.4076,2601.9,2601.5,3.0]
[1723856552662,0.12707296,2601.8,2601.5,3.0]
[1723856552885,2.4076,2601.9,2601.5,3.0]
[1723856553026,0.12707378,2601.8,2601.5,3.0]
[1723856553361,2.88456,2601.9,2601.5,3.0]
[1723856553563,0.1270731,2601.8,2601.5,3.0]
[1723856553862,0.1270731,2601.7,2601.4,3.0]
[1723856554163,2.88456,2601.9,2601.4,3.0]
[1723856554382,0.12707636,2601.8,2601.4,3.0]
[1723856554588,0.12707636,2601.7,2601.4,3.0]
[1723856554788,2.88456,2601.9,2601.4,3.0]
[1723856555086,0.12707853,2601.8,2601.4,3.0]
[1723856555285,0.12707853,2601.7,2601.4,3.0]
[1723856555444,2.88456,2601.9,2601.4,6.84407]
[1723856555646,0.12707532,2601.8,2601.4,6.84407]
[1723856555876,2.4076,2601.9,2601.4,6.84407]
[1723856556093,0.12707168,2601.8,2601.5,3.84392]
[1723856556290,0.7,2602.1,2601.6,5.3301]
[1723856556453,0.1270703,2602.0,2601.6,5.3301]
[1723856556652,0.1270703,2601.9,2601.6,5.3301]
[1723856556881,0.1270703,2601.8,2601.6,5.3301]
[1723856557189,0.7,2602.1,2601.6,5.3301]
[1723856557396,0.7,2602.1,2601.6,6.247502]
[1723856557397,0.12706388,2602.0,2601.6,6.247502]
[1723856557553,0.12706388,2601.9,2601.6,5.3301]
[1723856557749,0.7,2602.1,2601.6,5.3301]
[1723856557983,0.12706426,2602.0,2601.6,5.3301]
[1723856558184,0.12706426,2601.9,2601.6,5.3301]
[1723856558366,0.7,2602.1,2601.6,5.3301]
[1723856558574,0.1270642,2602.0,2601.6,7.909502]
[1723856558748,7.46,2602.3,2601.9,2.3301]
[1723856558950,2.2517,2602.5,2601.9,2.3301]
[1723856558951,1.662,2602.4,2601.9,5.3301]
[1723856559151,0.12704984,2602.3,2601.9,5.3301]
[1723856559404,0.12704984,2602.2,2601.9,5.3301]
[1723856559559,0.12704984,2602.1,2601.9,5.3301]
[1723856559759,1.662,2602.4,2601.9,5.3301]
[1723856559986,0.12705116,2602.3,2601.9,5.3301]
[1723856560194,0.12705116,2602.2,2601.9,5.3301]
[1723856560404,0.1270516,2602.1,2601.9,6.247447]
[1723856560713,7.46,2603.0,2602.6,3.84218]
[1723856561002,0.7,2603.1,2602.7,3.0]
[1723856561003,0.12701851,2602.9,2602.7,3.0]
[1723856561203,0.7,2603.1,2602.5,3.0]
[1723856561204,0.12701851,2602.8,2602.5,3.0]
[1723856561381,1.65187863,2603.1,2602.5,3.0]
[1723856561567,0.12701822,2603.0,2602.5,3.0]
[1723856561900,0.12701822,2602.9,2602.5,3.0]
[1723856562905,2.23125969,2603.0,2602.5,3.0]
[1723856563069,0.1270196,2602.9,2602.5,3.0]
[1723856563268,1.662,2603.0,2602.5,3.0]
[1723856564116,1.662,2603.0,2602.5,6.84243]
[1723856568205,1.662,2603.0,2602.5,3.0]
[1723856569572,1.662,2603.0,2602.5,6.84237]
[1723856570208,1.662,2603.0,2602.5,3.0]
[1723856570412,2.21855786,2603.0,2602.5,3.0]
[1723856570569,2.2635,2602.9,2602.5,3.0]
[1723856571782,3.9255,2602.9,2602.5,3.0]
[1723856571982,3.9255,2602.9,2602.4,3.0]
[1723856572167,0.44820579,2602.8,2602.6,3.0]
[1723856572364,0.44820579,2602.8,2602.4,6.8426]
[1723856572568,3.9255,2602.9,2602.4,6.8426]
[1723856573612,3.9255,2602.9,2602.4,3.0]
[1723856573975,3.9255,2602.9,2602.4,6.84257]
[1723856574323,3.9255,2602.9,2602.4,3.0]
[1723856575468,2.2635,2602.9,2602.4,3.0]
[1723856576008,2.2635,2602.9,2602.4,6.84257]
[1723856576195,2.87689365,2602.9,2602.4,6.84257]
[1723856578301,2.2635,2602.9,2602.4,6.84257]
[1723856579114,2.2635,2602.9,2602.5,3.84245]
[1723856579317,2.2635,2602.9,2602.6,3.0]
[1723856580290,7.46,2603.3,2603.0,3.84168]
[1723856580490,1.20903966,2603.7,2603.2,3.84134]
[1723856580491,2.2635,2603.7,2603.2,3.84134]
[1723856580823,2.2635,2603.7,2603.3,3.0]
[1723856580824,0.7,2603.6,2603.3,3.0]
[1723856581138,0.92635,2603.6,2603.1,3.0]
[1723856581718,2.58835,2603.6,2603.1,3.0]
[1723856582036,0.485185,2603.5,2603.1,3.0]
[1723856583891,2.3905107,2603.4,2602.9,3.0]
[1723856584087,0.23905107,2603.3,2602.7,6.84216]
[1723856584293,1.662,2603.3,2602.8,3.84201]
[1723856584527,1.662,2603.3,2602.9,3.0]
[1723856586976,1.662,2603.1,2602.9,3.0]
[1723856587182,2.39051984,2603.0,2602.4,3.84248]
[1723856587340,2.2635,2603.0,2602.4,3.84248]
[1723856587546,0.12702489,2602.9,2602.4,3.84248]
[1723856587873,2.9635,2603.0,2602.2,3.84281]
[1723856588080,0.12702944,2602.9,2602.2,3.84281]
[1723856588372,0.12702782,2602.8,2602.3,3.84274]
[1723856588525,4.85185,2603.0,2602.4,3.0]
[1723856588732,0.61221842,2602.9,2602.4,3.0]
[1723856588932,0.12703342,2602.8,2602.4,3.0]
[1723856590751,0.12703342,2602.7,2602.4,3.0]
[1723856590935,0.485185,2602.9,2602.4,3.0]
[1723856591280,0.1270308,2602.8,2602.4,3.0]
[1723856591457,0.1270308,2602.7,2602.4,3.0]
[1723856591659,0.485185,2602.9,2602.4,3.0]
[1723856591830,0.12703058,2602.8,2602.4,3.0]
[1723856592037,0.12703058,2602.7,2602.4,3.0]
[1723856592238,0.485185,2602.9,2602.4,3.0]
[1723856592436,0.12703494,2602.8,2602.4,3.0]
[1723856592673,0.12703494,2602.7,2602.4,3.0]
[1723856592860,0.5337035,2602.8,2602.4,3.0]
[1723856593070,0.1270331,2602.7,2602.4,3.0]
[1723856593249,4.85185,2603.0,2602.4,3.0]
[1723856593593,0.1270333,2602.9,2602.4,3.0]
[1723856593879,0.1270333,2602.8,2602.4,6.84259]
[1723856594044,0.485185,2602.9,2602.4,6.84259]
[1723856594248,0.12702775,2602.8,2602.4,6.84259]
[1723856594467,4.85185,2603.0,2602.4,7.91107]
[1723856594468,2.2635,2603.0,2602.4,7.91107]
[1723856594679,2.2635,2603.0,2602.6,3.84218]
[1723856594844,0.12702098,2602.9,2602.7,6.84215]
[1723856595049,2.2635,2603.0,2602.7,3.0]
[1723856595273,0.12702231,2602.9,2602.7,3.0]
[1723856595445,2.2635,2603.0,2602.7,3.0]
[1723856595807,0.12702015,2602.9,2602.7,3.0]
[1723856596100,2.2635,2603.0,2602.7,3.0]
[1723856596263,0.12702245,2602.9,2602.7,3.0]
[1723856596594,0.12702504,2602.8,2602.7,3.0]
[1723856596775,0.12702504,2602.8,2602.5,3.0]
[1723856597092,0.12702504,2602.7,2602.5,3.0]
[1723856597249,0.23905225,2602.9,2602.5,3.0]
[1723856597444,0.1270293,2602.8,2602.5,3.0]
[1723856597763,1.90105225,2602.9,2602.5,3.0]
[1723856599255,2.9635,2603.0,2602.5,6.84234]
[1723856599451,0.12702485,2602.9,2602.5,6.84234]
[1723856599795,0.12702485,2602.8,2602.5,6.84234]
[1723856599955,2.9635,2603.0,2602.5,3.0]
[1723856600149,0.1270257,2602.9,2602.5,3.0]
[1723856600346,2.9635,2603.0,2602.5,3.0]
[1723856600347,0.1270257,2602.8,2602.5,3.0]
[1723856600652,4.17205,2603.0,2602.5,3.0]
[1723856600895,0.12702553,2602.9,2602.5,3.0]
[1723856601076,0.12702553,2602.8,2602.5,3.0]
[1723856601400,4.17205,2603.0,2602.5,3.0]
[1723856601598,0.12702615,2602.9,2602.5,3.0]
[1723856601747,9.9097,2603.2,2602.7,3.84208]
[1723856601951,0.12701398,2603.1,2602.8,3.0]
[1723856602188,0.12701398,2603.0,2602.8,3.0]
[1723856602350,0.12701398,2602.9,2602.8,3.0]
[1723856602790,0.12701398,2603.1,2602.8,3.0]
[1723856602990,0.12701398,2603.0,2602.8,3.0]
[1723856603243,2.4497,2603.2,2602.8,3.0]
[1723856603401,0.12701289,2603.1,2602.8,3.0]
[1723856603603,0.12701289,2603.0,2602.8,3.0]
[1723856603753,2.4497,2603.2,2602.8,3.0]
[1723856603954,0.12701431,2603.1,2602.8,3.0]
[1723856604252,2.4497,2603.2,2602.8,3.0]
[1723856604253,0.12701431,2603.0,2602.8,3.0]
[1723856604454,2.4497,2603.2,2602.8,3.0]
[1723856604694,0.12701406,2603.1,2602.9,3.84186]
[1723856604898,1.662,2603.3,2602.8,6.8419]
[1723856605198,0.12700703,2603.2,2602.9,6.11726]
[1723856605380,0.12700703,2603.1,2603.0,3.0]
[1723856605864,0.12700703,2603.1,2602.9,5.2754]
[1723856606056,1.662,2603.3,2602.9,3.0]
[1723856606258,0.12700595,2603.2,2602.9,3.0]
[1723856606497,0.12700595,2603.1,2602.9,3.0]
[1723856606705,3.10046467,2603.3,2602.9,3.0]
[1723856607010,0.12700963,2603.2,2602.9,3.0]
[1723856607207,0.12700963,2603.1,2602.9,6.84185]
[1723856607491,1.662,2603.3,2602.9,6.84185]
[1723856607492,1.662,2603.3,2602.9,3.0]
[1723856607799,0.12700893,2603.2,2602.9,3.0]
[1723856607953,0.12700893,2603.1,2602.9,3.0]
[1723856608161,1.662,2603.3,2602.9,3.0]
[1723856608362,0.12700852,2603.2,2602.9,3.0]
[1723856608555,1.662,2603.3,2602.9,3.0]
[1723856608760,0.12700829,2603.2,2602.9,3.0]
[1723856609062,0.12700829,2603.1,2602.9,3.0]
[1723856609274,8.66903966,2603.5,2603.0,6.33654]
[1723856609609,0.12699416,2603.4,2603.1,3.0]
[1723856609809,0.12699416,2603.3,2603.1,3.0]
[1723856609970,3.059,2603.6,2603.1,3.0]
[1723856610152,0.12699618,2603.5,2603.1,3.0]
[1723856610483,0.12699618,2603.4,2603.1,3.0]
[1723856610701,3.059,2603.6,2603.1,3.0]
[1723856610922,0.12699611,2603.5,2603.1,3.0]
[1723856611129,0.12699611,2603.4,2603.1,3.0]
[1723856611326,3.059,2603.6,2603.1,3.0]
[1723856611538,0.126996,2603.5,2603.1,3.0]
[1723856611699,3.059,2603.6,2603.1,3.0]
[1723856611700,0.126996,2603.4,2603.1,3.0]
[1723856612043,0.126996,2603.3,2603.1,3.0]
[1723856612250,3.059,2603.6,2603.1,3.933654]
[1723856612455,3.059,2603.6,2603.1,3.0]
[1723856612456,0.12699413,2603.5,2603.1,3.0]
[1723856612753,0.12699528,2603.4,2603.1,3.0]
[1723856612976,0.12699528,2603.4,2603.0,3.0]
[1723856613109,0.12700001,2603.3,2603.0,3.0]
[1723856613445,1.662,2603.5,2603.0,3.0]
[1723856613446,0.12700001,2603.2,2603.0,3.0]
[1723856613629,1.662,2603.5,2603.0,3.0]
[1723856613939,0.12700502,2603.4,2603.0,3.0]
[1723856614145,1.662,2603.5,2603.0,3.0]
[1723856614146,0.12700502,2603.3,2603.0,3.0]
[1723856614302,1.662,2603.5,2603.0,3.0]
[1723856614503,0.12700278,2603.4,2603.0,3.0]
[1723856614811,0.12700278,2603.3,2603.0,4.317868]
[1723856615028,0.12700278,2603.2,2603.0,4.317868]
[1723856615199,1.662,2603.5,2603.0,4.317868]
[1723856615401,0.12700401,2603.4,2603.0,4.317868]
[1723856615629,0.12700401,2603.3,2603.0,4.317868]
[1723856615939,1.662,2603.5,2603.0,3.0]
[1723856616146,0.12700291,2603.4,2603.0,3.0]
[1723856616312,0.12700291,2603.3,2603.0,3.0]
[1723856616520,1.662,2603.5,2603.0,3.0]
[1723856616707,0.12700333,2603.4,2603.0,3.0]
[1723856616912,0.12700333,2603.3,2603.0,3.0]
[1723856617121,1.662,2603.5,2603.0,3.0]
[1723856617355,0.12700254,2603.4,2603.0,4.775373]
[1723856617507,0.12700254,2603.3,2603.1,3.0]
[1723856617846,1.662,2603.5,2603.1,3.0]
[1723856618145,0.12700188,2603.4,2603.1,3.0]
[1723856618386,1.662,2603.5,2603.1,3.0]
[1723856618387,0.12700188,2603.3,2603.1,3.0]
[1723856618591,1.662,2603.5,2603.1,3.0]
[1723856618891,0.12700184,2603.4,2603.1,3.0]
[1723856619087,0.12700184,2603.3,2603.1,3.0]
[1723856619293,3.059,2603.6,2603.1,3.684169]
[1723856619294,2.359,2603.6,2603.1,3.684169]
[1723856619448,0.12699191,2603.5,2603.4,3.84102]
[1723856619642,1.90903966,2604.0,2603.4,3.633592]
[1723856619891,0.12698314,2603.9,2603.4,3.0]
[1723856620048,0.12698314,2603.8,2603.5,3.0]
[1723856620247,1.90903966,2604.0,2603.4,3.0]
[1723856620248,0.12698314,2603.7,2603.4,3.0]
[1723856620447,0.7,2604.0,2603.4,7.29942241]
[1723856620648,0.12697932,2603.9,2603.4,7.29942241]
[1723856620952,11.481,2604.1,2603.6,3.84072]
[1723856620953,7.46,2604.1,2603.6,3.84072]
[1723856621182,5.93003966,2604.3,2603.7,3.0]
[1723856621183,0.12696621,2604.0,2603.7,3.0]
[1723856621363,5.93003966,2604.3,2603.7,3.0]
[1723856621364,4.721,2604.3,2603.7,3.0]
[1723856621576,0.12696844,2604.2,2603.7,3.0]
[1723856621891,0.12696844,2604.1,2603.7,3.0]
[1723856622047,0.12696844,2604.0,2603.7,3.0]
[1723856622281,6.58984925,2604.3,2603.7,3.0]
[1723856622593,0.12696354,2604.2,2603.7,3.0]
[1723856622918,0.12696354,2604.1,2603.7,3.0]
[1723856623824,0.12696354,2604.1,2603.5,5.4949]
[1723856624538,1.662,2604.0,2603.5,5.4949]
[1723856624686,4.021,2603.8,2603.3,6.84127]
[1723856625089,1.662,2604.0,2603.4,3.84112]
[1723856625318,1.662,2604.0,2603.5,3.0]
[1723856626186,1.662,2604.0,2603.5,5.4949]
[1723856635729,2.359,2604.1,2603.5,5.4949]
[1723856635937,0.12697416,2604.0,2603.5,5.4949]
[1723856636126,2.85178492,2604.1,2603.5,5.4949]
[1723856636313,0.12697317,2604.0,2603.5,5.4949]
[1723856636514,2.85178492,2604.1,2603.5,5.4949]
[1723856636734,0.12697303,2604.0,2603.5,5.4949]
[1723856636901,1.662,2604.0,2603.5,5.4949]
[1723856637101,2.11337849,2604.0,2603.5,5.4949]
[1723856637315,0.12697652,2603.9,2603.5,5.4949]
[1723856637547,1.662,2604.0,2603.5,5.4949]
[1723856637848,2.359,2604.1,2603.6,3.84081]
[1723856638005,1.662,2604.2,2603.7,3.0]
[1723856638006,0.1269702,2604.0,2603.7,3.0]
[1723856638203,1.662,2604.2,2603.7,3.0]
[1723856638546,0.12697145,2604.1,2603.8,2.3732]
[1723856638757,0.12697145,2604.0,2603.8,2.3732]
[1723856639058,0.7,2604.3,2603.8,2.3732]
[1723856639230,0.12696837,2604.2,2603.8,2.3732]
[1723856639547,0.12696837,2604.1,2603.8,2.3732]
[1723856639869,0.7,2604.3,2603.8,2.3732]
[1723856640021,0.12696692,2604.2,2603.8,2.3732]
[1723856640346,0.12696692,2604.1,2603.8,2.3732]
[1723856640521,1.91168,2604.3,2603.8,2.3732]
[1723856640706,0.12696837,2604.2,2603.8,2.3732]
[1723856641005,0.12696837,2604.1,2603.8,2.3732]
[1723856641206,0.12696837,2604.0,2603.8,2.3732]
[1723856641407,1.91168,2604.3,2603.8,2.3732]
[1723856641608,0.12696828,2604.2,2603.8,2.3732]
[1723856641810,0.12696828,2604.1,2603.8,2.3732]
[1723856642138,0.7,2604.3,2603.8,2.3732]
[1723856642309,0.12696663,2604.2,2603.8,2.3732]
[1723856642640,0.12696663,2604.1,2603.8,2.3732]
[1723856642841,1.91168,2604.3,2603.8,2.3732]
[1723856643029,0.12696678,2604.2,2603.8,2.3732]
[1723856643224,0.12696678,2604.1,2603.8,2.3732]
[1723856643554,11.4168,2604.4,2603.8,2.3732]
[1723856643555,7.46,2604.4,2603.9,3.91707486]
[1723856643765,7.46,2604.4,2604.0,9.21335]
[1723856643935,0.12695251,2604.3,2604.0,5.3732]
[1723856644249,7.46,2604.4,2604.0,5.3732]
[1723856644456,0.12695295,2604.3,2604.0,5.3732]
[1723856644610,7.46,2604.4,2604.0,5.3732]
[1723856644813,0.12695507,2604.3,2604.0,5.3732]
[1723856645154,8.4422,2604.4,2604.0,5.3732]
[1723856645313,0.12695424,2604.3,2604.0,5.3732]
[1723856645516,8.4422,2604.4,2604.0,5.3732]
[1723856645851,0.12695434,2604.3,2604.0,5.3732]
[1723856646053,8.4422,2604.4,2604.0,5.3732]
[1723856646216,0.12695442,2604.3,2604.0,5.3732]
[1723856646417,8.4422,2604.4,2604.0,5.3732]
[1723856646634,0.12695466,2604.3,2604.0,5.3732]
[1723856646844,1.662,2604.5,2604.0,5.3732]
[1723856647040,0.12695168,2604.4,2604.0,5.3732]
[1723856647359,0.12695168,2604.3,2604.0,5.3732]
[1723856647529,2.6442,2604.5,2604.0,5.3732]
[1723856647530,0.12695812,2604.2,2604.0,5.3732]
[1723856647850,2.6442,2604.5,2604.0,5.3732]
[1723856648058,0.12695774,2604.4,2604.0,5.3732]
[1723856648357,0.12695774,2604.3,2604.0,5.3732]
[1723856648566,2.6442,2604.5,2604.0,5.3732]
[1723856648567,0.12695774,2604.2,2604.0,5.3732]
[1723856648747,0.33442,2604.4,2604.0,5.3732]
[1723856648945,0.12695831,2604.3,2604.0,9.21337]
[1723856649145,0.7,2604.6,2604.0,9.21337]
[1723856649353,0.12694495,2604.5,2604.0,9.21337]
[1723856649533,0.12694495,2604.4,2604.0,5.3732]
[1723856649728,0.12694495,2604.3,2604.0,9.29019749]
[1723856649913,0.7,2604.6,2604.0,5.44999749]
[1723856650117,0.12694621,2604.5,2604.0,5.3732]
[1723856650326,0.12694621,2604.4,2604.0,5.3732]
[1723856650525,0.99489462,2604.5,2604.0,5.3732]
[1723856650725,0.12694679,2604.4,2604.0,5.3732]
[1723856650910,0.12694679,2604.3,2604.0,5.3732]
[1723856651257,0.99489462,2604.5,2604.0,5.3732]
[1723856651425,0.7,2604.6,2604.0,5.3732]
[1723856651615,1.1091495,2604.5,2604.0,5.3732]
[1723856651815,0.1269495,2604.4,2604.0,5.3732]
[1723856652113,0.9822,2604.5,2604.0,5.3732]
[1723856652314,0.1269527,2604.4,2604.0,5.3732]
[1723856652515,0.9822,2604.5,2604.0,5.3732]
[1723856652972,0.12695268,2604.4,2604.0,5.3732]
[1723856653142,0.12695268,2604.3,2604.0,5.3732]
[1723856653345,0.7,2604.6,2604.0,5.3732]
[1723856653511,0.12694975,2604.5,2604.0,5.3732]
[1723856653712,0.12694975,2604.4,2604.0,5.3732]
[1723856653914,0.7,2604.6,2604.0,5.3732]
[1723856653915,0.12694999,2604.3,2604.0,5.3732]
[1723856654155,0.7,2604.6,2604.0,5.3732]
[1723856654363,0.12694996,2604.5,2604.0,5.3732]
[1723856654513,0.12694996,2604.4,2604.0,5.3732]
[1723856654716,0.12694996,2604.3,2604.0,5.3732]
[1723856654915,2.3601963,2604.6,2604.0,5.3732]
[1723856655236,0.12694965,2604.5,2604.0,5.3732]
[1723856655435,0.12694965,2604.4,2604.0,5.3732]
[1723856655646,2.3601963,2604.6,2604.0,5.3732]
[1723856655647,0.12694965,2604.3,2604.0,5.3732]
[1723856655835,2.3601963,2604.6,2604.0,5.3732]
[1723856656052,0.12694843,2604.5,2604.0,5.3732]
[1723856656248,0.12694843,2604.4,2604.0,5.3732]
[1723856656561,0.7,2604.6,2604.0,9.21343]
[1723856656859,9.28167699,2605.0,2604.0,9.21343]
[1723856656860,0.12694639,2604.5,2604.4,3.83957]
[1723856657067,0.12694639,2604.5,2604.4,3.0]
[1723856657223,0.12694639,2604.5,2604.4,3.70539431]
[1723856658641,0.12694639,2604.5,2604.4,7.54504431]
[1723856658843,0.12694639,2604.5,2604.4,3.70539431]
[1723856659048,0.12694639,2604.5,2604.4,13.64619431]
[1723856659232,0.12694639,2604.5,2604.4,12.9408]
[1723856660687,1.662,2605.1,2604.5,3.83947]
[1723856660889,0.1269292,2605.0,2604.5,3.83947]
[1723856661197,0.1269292,2604.9,2604.5,5.133532]
[1723856661357,2.362,2605.2,2604.6,3.0]
[1723856661693,0.12692405,2605.1,2604.7,0.71670531]
[1723856661902,0.12692405,2605.0,2604.7,0.71670531]
[1723856662108,0.12692236,2604.9,2604.7,0.71670531]
[1723856662277,2.362,2605.2,2604.7,0.71670531]
[1723856662594,0.12692263,2605.1,2604.7,0.71670531]
[1723856662800,0.12692263,2605.0,2604.7,0.71670531]
[1723856662990,2.362,2605.2,2604.7,0.71670531]
[1723856663163,0.12692255,2605.1,2604.7,0.71670531]
[1723856663364,0.12692255,2605.0,2604.7,0.71670531]
[1723856663562,2.362,2605.2,2604.7,0.71670531]
[1723856663871,0.12692357,2605.1,2604.7,0.71670531]
[1723856664061,0.12692357,2605.0,2604.6,3.0]
[1723856664252,2.362,2605.2,2604.6,3.910115]
[1723856664461,0.12692226,2605.1,2604.6,3.910115]
[1723856664700,2.362,2605.2,2604.6,3.910115]
[1723856664701,0.12692226,2605.0,2604.6,3.910115]
[1723856664874,2.362,2605.2,2604.7,1.0011095]
[1723856665071,0.12692051,2605.1,2604.7,1.0011095]
[1723856665285,0.12692051,2605.0,2604.7,1.0011095]
[1723856665601,2.362,2605.2,2604.7,1.0011095]
[1723856665797,0.12692298,2605.1,2604.7,1.0011095]
[1723856666095,0.12692298,2605.0,2604.7,1.0011095]
[1723856666399,2.362,2605.2,2604.7,1.0011095]
[1723856666578,0.12692266,2605.1,2604.7,1.0011095]
[1723856666762,2.362,2605.2,2604.7,1.0011095]
[1723856666763,0.12692266,2605.0,2604.7,1.0011095]
[1723856666988,2.362,2605.2,2604.7,1.0011095]
[1723856667199,0.12692122,2605.1,2604.7,1.0011095]
[1723856667421,0.12692122,2605.0,2604.7,1.0011095]
[1723856667623,2.362,2605.2,2604.7,1.0011095]
[1723856667810,0.12692001,2605.1,2604.7,1.0011095]
[1723856668123,7.46,2605.4,2604.7,1.0011095]
[1723856668124,0.12692001,2605.0,2604.8,0.40011095]
[1723856668279,7.46,2605.4,2604.9,6.10038]
[1723856668475,0.12691023,2605.3,2604.9,6.7504291]
[1723856668681,7.46,2605.4,2604.9,2.9115491]
[1723856668682,0.12690954,2605.2,2604.9,2.9115491]
[1723856668887,7.46,2605.4,2604.9,2.9115491]
[1723856669091,0.12690886,2605.3,2605.0,3.331166]
[1723856669336,2.9985,2605.5,2605.0,3.331166]
[1723856669482,0.12689942,2605.4,2605.0,3.331166]
[1723856669684,4.6605,2605.5,2605.0,3.331166]
[1723856669921,0.1269014,2605.4,2605.0,3.331166]
[1723856670123,4.6605,2605.5,2605.0,3.0]
[1723856670300,0.12690276,2605.4,2605.0,3.0]
[1723856675801,2.362,2605.5,2605.0,3.0]
[1723856676021,0.12690345,2605.4,2605.1,0.59115491]
[1723856676214,2.362,2605.5,2605.1,0.59115491]
[1723856679327,2.362,2605.5,2605.0,3.0]
[1723856679904,0.7,2605.5,2605.0,3.0]
[1723856682004,0.7,2605.5,2605.0,6.83876]
[1723856682201,0.7,2605.5,2605.0,3.0]
[1723856682407,11.429,2605.7,2605.0,6.83875]
[1723856682737,0.1268983,2605.6,2605.0,6.83875]
[1723856683036,0.1268983,2605.5,2605.0,6.83875]
[1723856683208,11.429,2605.7,2605.0,6.83875]
[1723856683404,1.662,2605.5,2605.0,3.0]
[1723856683609,1.662,2605.5,2604.9,2.2615]
[1723856683610,0.12689969,2605.4,2605.1,3.0]
[1723856683806,0.12689969,2605.4,2605.1,5.2509]